fUSD/lending_fUSD_20250629
["ID","MTS","AMOUNT","RATE_DAILY","PERIOD"]
[368587272,1751217060752,-248.0,0.0002199,2]
[368587273,1751217060762,-1326.0,0.00022,2]
[368587274,1751217060771,-5954.11421182,0.00022003,2]
[368587275,1751217060780,-200.0,0.00022013,2]
[368587276,1751217060790,-171.37,0.00022022,2]
[368587277,1751217060799,-221.94752519,0.00022023,2]
[368587278,1751217060809,-3571.0,0.00022027,2]
[368587279,1751217060819,-159.25362937,0.0002203,2]
[368587280,1751217060828,-1634.67559321,0.00022051,2]
[368587281,1751217060838,-500.0,0.00022051,2]
[368587282,1751217060847,-500.0,0.00022051,2]
[368587283,1751217060857,-436.0,0.00022051,2]
[368587284,1751217060866,-633.0,0.00022051,2]
[368587285,1751217060876,-7000.0,0.0002207,2]
[368587286,1751217060887,-500.0,0.0002208,2]
[368587287,1751217060896,-500.0,0.0002208,2]
[368587288,1751217060906,-500.0,0.0002208,2]
[368587289,1751217060916,-500.0,0.0002208,2]
[368587290,1751217060926,-500.0,0.0002208,2]
[368587291,1751217060935,-500.0,0.0002208,2]
[368587292,1751217060945,-500.0,0.0002208,2]
[368587293,1751217060955,-500.0,0.0002208,2]
[368587294,1751217060965,-500.0,0.0002208,2]
[368587295,1751217060975,-593.7648,0.0002208,2]
[368587296,1751217060984,-494.734076,0.00022091,2]
[368587297,1751217060993,-3999.25643226,0.00022091,2]
[368587298,1751217061003,-472.38609636,0.00022091,2]
[368587299,1751217061013,-16964.89058469,0.00022091,2]
[368587300,1751217061022,-2301.70000843,0.00022107,6]
[368587301,1751217061032,-1634.67559321,0.00022113,2]
[368587302,1751217061041,-200.0,0.00022126,2]
[368587303,1751217061052,-500.0,0.00022172,2]
[368587304,1751217061061,-166.20442101,0.00022173,2]
[368587305,1751217061071,-500.59591123,0.00022173,2]
[368587306,1751217061080,-500.0,0.00022173,2]
[368587307,1751217061091,-323.05285203,0.00022173,2]
[368587308,1751217061101,-159.72974989,0.00022173,2]
[368587309,1751217061110,-159.72974989,0.00022173,2]
[368587310,1751217061119,-500.0,0.00022173,2]
[368587311,1751217061129,-159.727904,0.00022173,2]
[368587312,1751217061138,-159.727904,0.00022173,2]
[368587313,1751217061148,-159.72974989,0.00022173,2]
[368587314,1751217061157,-159.72974989,0.00022173,2]
[368587315,1751217061167,-159.72974978,0.00022173,2]
[368587316,1751217061177,-159.727904,0.00022173,2]
[368587317,1751217061187,-500.0,0.00022173,2]
[368587318,1751217061197,-159.72975798,0.00022173,2]
[368587319,1751217061207,-159.727904,0.00022173,2]
[368587320,1751217061216,-159.72974989,0.00022173,2]
[368587321,1751217061225,-504.92350676,0.00022173,2]
[368587322,1751217061235,-159.727904,0.00022173,2]
[368587323,1751217061244,-164.72130458,0.00022173,2]
[368587324,1751217061254,-500.0,0.00022173,2]
[368587325,1751217061264,-159.72974989,0.00022173,2]
[368587326,1751217061273,-160.010898,0.00022173,2]
[368587327,1751217061283,-159.72974989,0.00022173,2]
[368587328,1751217061292,-158.0,0.00022173,2]
[368587329,1751217061301,-164.71044508,0.00022173,2]
[368587330,1751217061310,-500.0,0.00022173,2]
[368587331,1751217061319,-159.72974989,0.00022173,2]
[368587332,1751217061328,-159.81540117,0.00022173,2]
[368587333,1751217061338,-159.72974989,0.00022173,2]
[368587334,1751217061349,-159.727904,0.00022173,2]
[368587335,1751217061358,-159.72974989,0.00022173,2]
[368587336,1751217061368,-159.72974978,0.00022173,2]
[368587337,1751217061377,-500.0,0.00022173,2]
[368587338,1751217061386,-500.0,0.00022173,2]
[368587339,1751217061397,-500.0,0.00022173,2]
[368587340,1751217061407,-159.727904,0.00022173,2]
[368587341,1751217061416,-256.13504802,0.00022173,2]
[368587342,1751217061426,-500.0,0.00022173,2]
[368587343,1751217061435,-213.14955858,0.00022173,2]
[368587344,1751217061444,-500.0,0.00022173,2]
[368587345,1751217061561,-500.0,0.00022173,2]
[368587346,1751217061571,-500.0,0.00022173,2]
[368587347,1751217061581,-500.0,0.00022173,2]
[368587348,1751217061590,-160.72806071,0.00022173,2]
[368587349,1751217061598,-160.83605704,0.00022173,2]
[368587350,1751217061608,-159.727904,0.00022173,2]
[368587351,1751217061618,-159.72974989,0.00022173,2]
[368587352,1751217061628,-159.727904,0.00022173,2]
[368587353,1751217061638,-159.727904,0.00022173,2]
[368587354,1751217061648,-500.0,0.00022173,2]
[368587355,1751217061657,-500.0,0.00022173,2]
[368587356,1751217061666,-500.0,0.00022173,2]
[368587357,1751217061676,-500.0,0.00022173,2]
[368587358,1751217061685,-500.0,0.00022173,2]
[368587359,1751217061694,-500.0,0.00022173,2]
[368587360,1751217061703,-500.0,0.00022173,2]
[368587361,1751217061713,-500.0,0.00022173,2]
[368587362,1751217061722,-500.0,0.00022173,2]
[368587363,1751217061731,-500.0,0.00022173,2]
[368587364,1751217061740,-500.0,0.00022173,2]
[368587365,1751217061749,-506.84287581,0.00022173,2]
[368587366,1751217061760,-157.2498453,0.00022173,2]
[368587367,1751217061768,-500.0,0.00022173,2]
[368587368,1751217061778,-481.84897218,0.00022173,2]
[368587369,1751217061787,-500.0,0.00022173,2]
[368587370,1751217061797,-500.0,0.00022173,2]
[368587371,1751217061807,-500.0,0.00022173,2]
[368587372,1751217061816,-500.0,0.00022173,2]
[368587373,1751217061825,-500.0,0.00022173,2]
[368587374,1751217061835,-178.27246136,0.00022173,2]
[368587375,1751217061844,-513.90456754,0.00022173,2]
[368587376,1751217061853,-273.34954719,0.00022173,2]
[368587377,1751217061863,-1634.67559321,0.00022176,2]
[368587378,1751217061873,-1769.37831411,0.00022181,2]
[368587379,1751217061882,-5954.11421182,0.00022184,2]
[368587380,1751217061892,-500.0,0.00022187,2]
[368587381,1751217061902,-4250.0,0.00022187,2]
[368587382,1751217061911,-650.0,0.00022187,2]
[368587383,1751217061921,-327.62092147,0.00022187,2]
[368587384,1751217061930,-438.0,0.00022187,2]
[368587385,1751217061941,-500.0,0.0002219,2]
[368587386,1751217061950,-333.73758256,0.0002219,2]
[368587387,1751217061960,-850.27,0.0002219,2]
[368587388,1751217061970,-850.27,0.0002219,2]
[368587389,1751217061979,-850.27,0.0002219,2]
[368587390,1751217061988,-850.27,0.0002219,2]
[368587391,1751217061998,-850.27,0.0002219,2]
[368587392,1751217062008,-850.27,0.0002219,2]
[368587393,1751217062017,-850.27,0.0002219,2]
[368587394,1751217062027,-850.27,0.0002219,2]
[368587395,1751217062037,-500.0,0.0002219,2]
[368587396,1751217062046,-500.0,0.0002219,2]
[368587397,1751217062055,-500.0,0.0002219,2]
[368587398,1751217062065,-500.0,0.0002219,2]
[368587399,1751217062075,-500.0,0.0002219,2]
[368587400,1751217062084,-500.0,0.0002219,2]
[368587401,1751217062093,-500.0,0.0002219,2]
[368587402,1751217062102,-500.0,0.0002219,2]
[368587403,1751217062112,-500.0,0.0002219,2]
[368587404,1751217062122,-500.0,0.0002219,2]
[368587405,1751217062132,-500.0,0.0002219,2]
[368587406,1751217062141,-500.0,0.0002219,2]
[368587407,1751217062150,-500.0,0.0002219,2]
[368587408,1751217062159,-500.0,0.0002219,2]
[368587409,1751217062169,-500.0,0.0002219,2]
[368587410,1751217062180,-500.0,0.0002219,2]
[368587411,1751217062191,-490.0,0.00022191,2]
[368587412,1751217062201,-1590.55,0.00022191,2]
[368587413,1751217062210,-152.13024,0.00022191,7]
[368587414,1751217062220,-157.54783,0.00022191,7]
[368587415,1751217062230,-3961.174608,0.00022191,2]
[368587416,1751217062239,-151.0,0.00022191,7]
[368587417,1751217062249,-152.991178,0.00022191,7]
[368587418,1751217062259,-154.628684,0.00022191,2]
[368587419,1751217062268,-650.47019,0.00022191,2]
[368587420,1751217062277,-164.959274,0.00022191,7]
[368587421,1751217062286,-164.959274,0.00022191,7]
[368587422,1751217062296,-164.959274,0.00022191,7]
[368587423,1751217062305,-164.959274,0.00022191,7]
[368587424,1751217062315,-164.959274,0.00022191,7]
[368587425,1751217062326,-164.959274,0.00022191,7]
[368587426,1751217062337,-151.0,0.00022191,7]
[368587427,1751217062346,-151.0,0.00022191,7]
[368587428,1751217062356,-151.0,0.00022191,7]
[368587429,1751217062366,-151.0,0.00022191,7]
[368587430,1751217062375,-151.0,0.00022191,7]
[368587431,1751217062384,-151.0,0.00022191,7]
[368587432,1751217062394,-151.0,0.00022191,7]
[368587433,1751217062404,-155.106899,0.00022191,7]
[368587434,1751217062414,-151.0,0.00022191,7]
[368587435,1751217062425,-151.715969,0.00022191,7]
[368587436,1751217062436,-151.392039,0.00022191,7]
[368587437,1751217062446,-251.717776,0.00022191,7]
[368587438,1751217062455,-701.26,0.00022191,2]
[368587439,1751217062465,-490.0,0.00022191,2]
[368587440,1751217062474,-490.0,0.00022191,2]
[368587441,1751217062483,-490.0,0.00022191,2]
[368587442,1751217062493,-490.0,0.00022191,2]
[368587443,1751217062503,-490.0,0.00022191,2]
[368587444,1751217062513,-490.0,0.00022191,2]
[368587445,1751217062524,-151.0,0.00022191,7]
[368587446,1751217062533,-151.0,0.00022191,7]
[368587447,1751217062542,-158.954325,0.00022191,7]
[368587448,1751217062554,-490.0,0.00022191,2]
[368587449,1751217062563,-490.0,0.00022191,2]
[368587450,1751217062573,-756.7,0.00022191,2]
[368587451,1751217062582,-303.069565,0.00022191,7]
[368587452,1751217062591,-303.069565,0.00022191,7]
[368587453,1751217062609,-303.069565,0.00022191,7]
[368587454,1751217062618,-303.069565,0.00022191,7]
[368587455,1751217062627,-303.069565,0.00022191,7]
[368587456,1751217062635,-303.069565,0.00022191,7]
[368587457,1751217062644,-303.069565,0.00022191,7]
[368587458,1751217062654,-303.069565,0.00022191,7]
[368587459,1751217062662,-490.0,0.00022191,2]
[368587460,1751217062671,-603.99,0.00022191,2]
[368587461,1751217062681,-622.16,0.00022191,2]
[368587462,1751217062690,-151.0,0.00022191,7]
[368587463,1751217062699,-151.0,0.00022191,7]
[368587464,1751217062708,-151.0,0.00022191,7]
[368587465,1751217062718,-151.0,0.00022191,7]
[368587466,1751217062727,-490.0,0.00022191,2]
[368587467,1751217062736,-490.0,0.00022191,2]
[368587468,1751217062745,-490.0,0.00022191,2]
[368587469,1751217062755,-490.0,0.00022191,2]
[368587470,1751217062764,-490.0,0.00022191,2]
[368587471,1751217062774,-672.37,0.00022191,2]
[368587472,1751217062783,-490.0,0.00022191,2]
[368587473,1751217062792,-244.036378,0.00022191,7]
[368587474,1751217062801,-244.036378,0.00022191,7]
[368587475,1751217062811,-244.036378,0.00022191,7]
[368587476,1751217062820,-244.036378,0.00022191,7]
[368587477,1751217062829,-244.036378,0.00022191,7]
[368587478,1751217062839,-244.036378,0.00022191,7]
[368587479,1751217062848,-244.036378,0.00022191,7]
[368587480,1751217062857,-244.036378,0.00022191,7]
[368587481,1751217062866,-1080.73,0.00022191,2]
[368587482,1751217062876,-566.32,0.00022191,2]
[368587483,1751217062886,-490.0,0.00022191,2]
[368587484,1751217062895,-519.543196,0.00022191,7]
[368587485,1751217062904,-519.543196,0.00022191,7]
[368587486,1751217062913,-519.543196,0.00022191,7]
[368587487,1751217062922,-519.543196,0.00022191,7]
[368587488,1751217062931,-519.543196,0.00022191,7]
[368587489,1751217062941,-519.543196,0.00022191,7]
[368587490,1751217062950,-519.543196,0.00022191,7]
[368587491,1751217062959,-519.543196,0.00022191,7]
[368587492,1751217062968,-490.0,0.00022191,2]
[368587493,1751217062978,-151.0,0.00022191,7]
[368587494,1751217062988,-151.0,0.00022191,7]
[368587495,1751217062997,-151.0,0.00022191,7]
[368587496,1751217063007,-151.0,0.00022191,7]
[368587497,1751217063016,-576.21,0.00022191,2]
[368587498,1751217063026,-922.8,0.00022191,2]
[368587499,1751217063035,-151.0,0.00022191,7]
[368587500,1751217063045,-151.0,0.00022191,7]
[368587501,1751217063055,-490.0,0.00022191,2]
[368587502,1751217063066,-156.62888986,0.00022191,2]
[368587503,1751217063076,-490.0,0.00022191,2]
[368587504,1751217063086,-490.0,0.00022191,2]
[368587505,1751217063096,-490.0,0.00022191,2]
[368587506,1751217063108,-490.0,0.00022191,2]
[368587507,1751217063117,-490.0,0.00022191,2]
[368587508,1751217063129,-496.93630279,0.00022191,2]
[368587509,1751217063140,-490.0,0.00022191,2]
[368587510,1751217063150,-151.0,0.00022191,7]
[368587511,1751217063160,-595.0593977,0.00022191,2]
[368587512,1751217063171,-490.0,0.00022191,2]
[368587513,1751217063182,-490.0,0.00022191,2]
[368587514,1751217063195,-254.15070485,0.00022191,2]
[368587515,1751217063205,-490.0,0.00022191,2]
[368587516,1751217063215,-490.0,0.00022191,2]
[368587517,1751217063224,-490.0,0.00022191,2]
[368587518,1751217063235,-490.0,0.00022191,2]
[368587519,1751217063245,-715.62,0.00022191,2]
[368587520,1751217063255,-490.0,0.00022191,2]
[368587521,1751217063264,-168.293026,0.00022191,2]
[368587522,1751217063275,-490.0,0.00022191,2]
[368587523,1751217063287,-490.0,0.00022191,2]
[368587524,1751217063298,-165.556653,0.00022191,2]
[368587525,1751217063307,-271.83036192,0.00022191,2]
[368587526,1751217063318,-490.0,0.00022191,2]
[368587527,1751217063327,-151.0,0.00022191,7]
[368587528,1751217063338,-151.0,0.00022191,7]
[368587529,1751217063348,-151.0,0.00022191,7]
[368587530,1751217063358,-151.0,0.00022191,7]
[368587531,1751217063368,-151.0,0.00022191,7]
[368587532,1751217063380,-151.0,0.00022191,7]
[368587533,1751217063390,-490.0,0.00022191,2]
[368587534,1751217063399,-174.794134,0.00022191,2]
[368587535,1751217063409,-490.0,0.00022191,2]
[368587536,1751217063418,-172.15007,0.00022191,2]
[368587537,1751217063428,-1140.35,0.00022191,2]
[368587538,1751217063437,-490.0,0.00022191,2]
[368587539,1751217063447,-490.0,0.00022191,2]
[368587540,1751217063456,-490.0,0.00022191,2]
[368587541,1751217063465,-425.0095686,0.00022191,2]
[368587542,1751217063475,-1320.23,0.00022191,2]
[368587543,1751217063484,-589.05,0.00022191,2]
[368587544,1751217063494,-1265.22,0.00022191,2]
[368587545,1751217063503,-490.0,0.00022191,2]
[368587546,1751217063513,-490.0,0.00022191,2]
[368587547,1751217063523,-490.0,0.00022191,2]
[368587548,1751217063533,-490.0,0.00022191,2]
[368587549,1751217063543,-490.0,0.00022191,2]
[368587550,1751217063553,-490.0,0.00022191,2]
[368587551,1751217063563,-771.98,0.00022191,2]
[368587552,1751217063573,-490.0,0.00022191,2]
[368587553,1751217063583,-505.13,0.00022191,2]
[368587554,1751217063592,-490.0,0.00022191,2]
[368587555,1751217063602,-1833.78,0.00022191,2]
[368587556,1751217063612,-490.0,0.00022191,2]
[368587557,1751217063621,-490.0,0.00022191,2]
[368587558,1751217063631,-490.0,0.00022191,2]
[368587559,1751217063641,-862.27,0.00022191,2]
[368587560,1751217063651,-490.0,0.00022191,2]
[368587561,1751217063661,-490.0,0.00022191,2]
[368587562,1751217063670,-495.43126155,0.00022191,2]
[368587563,1751217063679,-490.0,0.00022191,2]
[368587564,1751217063689,-490.0,0.00022191,2]
[368587565,1751217063698,-490.0,0.00022191,2]
[368587566,1751217063707,-186.49541748,0.00022191,2]
[368587567,1751217063718,-502.97,0.00022191,2]
[368587568,1751217063727,-490.0,0.00022191,2]
[368587569,1751217063736,-755.07,0.00022191,2]
[368587570,1751217063746,-490.0,0.00022191,2]
[368587571,1751217063756,-490.0,0.00022191,2]
[368587572,1751217063765,-490.0,0.00022191,2]
[368587573,1751217063775,-3873.213285,0.00022191,2]
[368587574,1751217063785,-490.0,0.00022191,2]
[368587575,1751217063794,-615.37,0.00022191,2]
[368587576,1751217063803,-490.0,0.00022191,2]
[368587577,1751217063814,-490.0,0.00022191,2]
[368587578,1751217063823,-490.0,0.00022191,2]
[368587579,1751217063833,-342.02389633,0.00022191,2]
[368587580,1751217063842,-490.0,0.00022191,2]
[368587581,1751217063851,-810.58,0.00022191,2]
[368587582,1751217063861,-490.0,0.00022191,2]
[368587583,1751217063871,-490.0,0.00022191,2]
[368587584,1751217063883,-490.0,0.00022191,2]
[368587585,1751217063893,-490.0,0.00022191,2]
[368587586,1751217063903,-490.0,0.00022191,2]
[368587587,1751217063914,-892.9,0.00022191,2]
[368587588,1751217063924,-938.19,0.00022191,2]
[368587589,1751217063934,-901.72,0.00022191,2]
[368587590,1751217063944,-778.81,0.00022191,2]
[368587591,1751217063954,-1273.56,0.00022191,2]
[368587592,1751217063964,-571.77,0.00022191,2]
[368587593,1751217063973,-490.0,0.00022191,2]
[368587594,1751217063983,-490.0,0.00022191,2]
[368587595,1751217063993,-490.0,0.00022191,2]
[368587596,1751217064002,-490.0,0.00022191,2]
[368587597,1751217064012,-490.0,0.00022191,2]
[368587598,1751217064022,-490.0,0.00022191,2]
[368587599,1751217064032,-601.96,0.00022191,2]
[368587600,1751217064041,-829.76,0.00022191,2]
[368587601,1751217064051,-525.24,0.00022191,2]
[368587602,1751217064060,-490.0,0.00022191,2]
[368587603,1751217064069,-490.0,0.00022191,2]
[368587604,1751217064079,-518.99,0.00022191,2]
[368587605,1751217064088,-524.99410988,0.00022191,2]
[368587606,1751217064099,-490.0,0.00022191,2]
[368587607,1751217064109,-708.7,0.00022191,2]
[368587608,1751217064118,-634.72,0.00022191,2]
[368587609,1751217064128,-506.98,0.00022191,2]
[368587610,1751217064139,-490.0,0.00022191,2]
[368587611,1751217064148,-490.0,0.00022191,2]
[368587612,1751217064158,-709.87,0.00022191,2]
[368587613,1751217064167,-490.0,0.00022191,2]
[368587614,1751217064178,-752.4,0.00022191,2]
[368587615,1751217064189,-2208.19,0.00022191,2]
[368587616,1751217064200,-490.0,0.00022191,2]
[368587617,1751217064209,-661.09,0.00022191,2]
[368587618,1751217064219,-490.0,0.00022191,2]
[368587619,1751217064229,-490.0,0.00022191,2]
[368587620,1751217064238,-490.0,0.00022191,2]
[368587621,1751217064248,-522.35254805,0.00022191,2]
[368587622,1751217064259,-490.0,0.00022191,2]
[368587623,1751217064268,-490.0,0.00022191,2]
[368587624,1751217064278,-490.0,0.00022191,2]
[368587625,1751217064288,-490.0,0.00022191,2]
[368587626,1751217064297,-929.08,0.00022191,2]
[368587627,1751217064307,-490.0,0.00022191,2]
[368587628,1751217064318,-490.0,0.00022191,2]
[368587629,1751217064328,-490.0,0.00022191,2]
[368587630,1751217064338,-490.0,0.00022191,2]
[368587631,1751217064347,-597.23,0.00022191,2]
[368587632,1751217064357,-574.42,0.00022191,2]
[368587633,1751217064367,-1280.5,0.00022191,2]
[368587634,1751217064377,-490.0,0.00022191,2]
[368587635,1751217064386,-490.0,0.00022191,2]
[368587636,1751217064396,-490.0,0.00022191,2]
[368587637,1751217064406,-490.0,0.00022191,2]
[368587638,1751217064415,-490.0,0.00022191,2]
[368587639,1751217064423,-490.0,0.00022191,2]
[368587640,1751217064431,-346.74168,0.00022191,2]
[368587641,1751217064440,-1266.8,0.00022191,2]
[368587642,1751217064449,-490.0,0.00022191,2]
[368587643,1751217064459,-490.0,0.00022191,2]
[368587644,1751217064468,-575.06,0.00022191,2]
[368587645,1751217064477,-490.0,0.00022191,2]
[368587646,1751217064487,-490.0,0.00022191,2]
[368587647,1751217064496,-490.0,0.00022191,2]
[368587648,1751217064506,-649.63,0.00022191,2]
[368587649,1751217064515,-1026.03,0.00022191,2]
[368587650,1751217064524,-490.0,0.00022191,2]
[368587651,1751217064534,-490.0,0.00022191,2]
[368587652,1751217064543,-490.0,0.00022191,2]
[368587653,1751217064552,-490.0,0.00022191,2]
[368587654,1751217064561,-490.0,0.00022191,2]
[368587655,1751217064570,-490.0,0.00022191,2]
[368587656,1751217064579,-490.0,0.00022191,2]
[368587657,1751217064589,-490.0,0.00022191,2]
[368587658,1751217064599,-525.52,0.00022191,2]
[368587659,1751217064608,-490.0,0.00022191,2]
[368587660,1751217064618,-490.0,0.00022191,2]
[368587661,1751217064627,-490.0,0.00022191,2]
[368587662,1751217064637,-490.0,0.00022191,2]
[368587663,1751217064647,-490.0,0.00022191,2]
[368587664,1751217064658,-490.0,0.00022191,2]
[368587665,1751217064668,-490.0,0.00022191,2]
[368587666,1751217064679,-490.0,0.00022191,2]
[368587667,1751217064688,-490.0,0.00022191,2]
[368587668,1751217064699,-489.22,0.00022191,2]
[368587669,1751217064709,-490.0,0.00022191,2]
[368587670,1751217064719,-490.0,0.00022191,2]
[368587671,1751217064729,-490.0,0.00022191,2]
[368587672,1751217064739,-490.0,0.00022191,2]
[368587673,1751217064749,-490.0,0.00022191,2]
[368587674,1751217064760,-1681.18,0.00022191,2]
[368587675,1751217064771,-490.0,0.00022191,2]
[368587676,1751217064781,-490.0,0.00022191,2]
[368587677,1751217064791,-1145.67,0.00022191,2]
[368587678,1751217064802,-990.94,0.00022191,2]
[368587679,1751217064811,-259.45027359,0.00022191,2]
[368587680,1751217064820,-490.0,0.00022191,2]
[368587681,1751217064830,-490.0,0.00022191,2]
[368587682,1751217064839,-178.83762367,0.00022191,2]
[368587683,1751217064848,-490.0,0.00022191,2]
[368587684,1751217064858,-1904.54,0.00022191,2]
[368587685,1751217064868,-490.43,0.00022191,2]
[368587686,1751217064878,-490.0,0.00022191,2]
[368587687,1751217064887,-1088.79,0.00022191,2]
[368587688,1751217064897,-490.0,0.00022191,2]
[368587689,1751217064907,-490.0,0.00022191,2]
[368587690,1751217064917,-1210.42,0.00022191,2]
[368587691,1751217064926,-647.45,0.00022191,2]
[368587692,1751217064936,-490.0,0.00022191,2]
[368587693,1751217064946,-490.0,0.00022191,2]
[368587694,1751217064955,-490.0,0.00022191,2]
[368587695,1751217064965,-490.0,0.00022191,2]
[368587696,1751217064975,-490.0,0.00022191,2]
[368587697,1751217064984,-490.0,0.00022191,2]
[368587698,1751217064994,-490.0,0.00022191,2]
[368587699,1751217065004,-490.0,0.00022191,2]
[368587700,1751217065014,-490.0,0.00022191,2]
[368587701,1751217065023,-490.0,0.00022191,2]
[368587702,1751217065033,-490.0,0.00022191,2]
[368587703,1751217065042,-490.0,0.00022191,2]
[368587704,1751217065052,-908.63,0.00022191,2]
[368587705,1751217065061,-490.0,0.00022191,2]
[368587706,1751217065071,-438.8881471,0.00022191,2]
[368587707,1751217065081,-1544.97,0.00022191,2]
[368587708,1751217065091,-490.0,0.00022191,2]
[368587709,1751217065100,-490.0,0.00022191,2]
[368587710,1751217065110,-490.0,0.00022191,2]
[368587711,1751217065120,-490.0,0.00022191,2]
[368587712,1751217065129,-490.0,0.00022191,2]
[368587713,1751217065139,-542.26,0.00022191,2]
[368587714,1751217065149,-1258.8,0.00022191,2]
[368587715,1751217065159,-490.0,0.00022191,2]
[368587716,1751217065168,-490.0,0.00022191,2]
[368587717,1751217065178,-490.0,0.00022191,2]
[368587718,1751217065189,-490.0,0.00022191,2]
[368587719,1751217065200,-490.0,0.00022191,2]
[368587720,1751217065209,-490.0,0.00022191,2]
[368587721,1751217065219,-490.0,0.00022191,2]
[368587722,1751217065229,-490.0,0.00022191,2]
[368587723,1751217065240,-673.6,0.00022191,2]
[368587724,1751217065250,-597.79,0.00022191,2]
[368587725,1751217065259,-490.0,0.00022191,2]
[368587726,1751217065271,-490.0,0.00022191,2]
[368587727,1751217065282,-490.0,0.00022191,2]
[368587728,1751217065292,-490.0,0.00022191,2]
[368587729,1751217065302,-577.07,0.00022191,2]
[368587730,1751217065312,-495.54,0.00022191,2]
[368587731,1751217065323,-547.73,0.00022191,2]
[368587732,1751217065333,-490.0,0.00022191,2]
[368587733,1751217065344,-490.0,0.00022191,2]
[368587734,1751217065354,-1199.38,0.00022191,2]
[368587735,1751217065364,-370.38077494,0.00022191,2]
[368587736,1751217065373,-490.0,0.00022191,2]
[368587737,1751217065383,-490.0,0.00022191,2]
[368587738,1751217065393,-490.0,0.00022191,2]
[368587739,1751217065403,-490.0,0.00022191,2]
[368587740,1751217065412,-490.0,0.00022191,2]
[368587741,1751217065422,-490.0,0.00022191,2]
[368587742,1751217065431,-490.0,0.00022191,2]
[368587743,1751217065441,-847.99,0.00022191,2]
[368587744,1751217065450,-640.5,0.00022191,2]
[368587745,1751217065459,-490.0,0.00022191,2]
[368587746,1751217065468,-843.32,0.00022191,2]
[368587747,1751217065478,-490.0,0.00022191,2]
[368587748,1751217065488,-1189.91,0.00022191,2]
[368587749,1751217065498,-490.0,0.00022191,2]
[368587750,1751217065507,-490.0,0.00022191,2]
[368587751,1751217065516,-490.0,0.00022191,2]
[368587752,1751217065526,-490.0,0.00022191,2]
[368587753,1751217065535,-639.08,0.00022191,2]
[368587754,1751217065545,-1053.15,0.00022191,2]
[368587755,1751217065554,-577.81,0.00022191,2]
[368587756,1751217065564,-490.0,0.00022191,2]
[368587757,1751217065574,-490.0,0.00022191,2]
[368587758,1751217065584,-490.0,0.00022191,2]
[368587759,1751217065593,-230.87093625,0.00022191,2]
[368587760,1751217065603,-490.0,0.00022191,2]
[368587761,1751217065612,-490.0,0.00022191,2]
[368587762,1751217065622,-490.0,0.00022191,2]
[368587763,1751217065631,-499.80761244,0.00022191,2]
[368587764,1751217065641,-490.0,0.00022191,2]
[368587765,1751217065650,-607.89324229,0.00022191,2]
[368587766,1751217065660,-490.0,0.00022191,2]
[368587767,1751217065671,-490.0,0.00022191,2]
[368587768,1751217065681,-490.0,0.00022191,2]
[368587769,1751217065692,-490.0,0.00022191,2]
[368587770,1751217065702,-490.0,0.00022191,2]
[368587771,1751217065713,-500.0,0.00022191,2]